bitfinex/quotes_SOLUSD_20250308
["timestamp","ask_amount","ask_price","bid_price","bid_amount"]
[1741399238351,81.3,139.87,139.84,21.00815181]
[1741399238555,81.3,139.87,139.85,21.00815181]
[1741399238727,0.03,139.88,139.86,21.00815181]
[1741399238930,0.03,139.88,139.87,21.00815181]
[1741399239348,0.03,139.88,139.86,21.00815181]
[1741399239555,0.03,139.88,139.85,21.00815181]
[1741399239734,0.03,139.87,139.85,21.00815181]
[1741399240056,0.03,139.87,139.84,21.00815181]
[1741399240834,81.3,139.86,139.8,7.1859]
[1741399241038,81.3,139.86,139.81,21.00815181]
[1741399241247,81.3,139.86,139.81,32.29522946]
[1741399241448,81.3,139.86,139.81,21.00815181]
[1741399241851,103.89435181,139.86,139.8,21.04115181]
[1741399242042,21.00815181,139.85,139.8,0.033]
[1741399242757,82.8862,139.86,139.81,21.00815181]
[1741399242960,82.8862,139.86,139.82,21.00815181]
[1741399243761,88.6062,139.86,139.82,21.00815181]
[1741399243962,88.6062,139.86,139.81,21.00815181]
[1741399244258,82.8862,139.86,139.82,21.00815181]
[1741399245129,81.3,139.86,139.82,28.16005181]
[1741399245455,81.3,139.86,139.84,21.00815181]
[1741399245839,81.3,139.86,139.83,21.00815181]
[1741399246043,81.3,139.86,139.84,21.00815181]
[1741399246763,81.3,139.86,139.85,21.00815181]
[1741399247350,81.3,139.86,139.85,28.15865181]
[1741399248171,81.3,139.86,139.84,21.00815181]
[1741399249168,81.3,139.86,139.83,21.00815181]
[1741399250177,87.02,139.86,139.83,21.00815181]
[1741399250482,87.02,139.86,139.81,21.00815181]
[1741399250644,81.3,139.85,139.81,21.00815181]
[1741399251171,81.3,139.85,139.83,21.00815181]
[1741399251343,81.3,139.85,139.82,21.00815181]
[1741399253870,81.3,139.85,139.83,21.00815181]
[1741399254279,81.3,139.85,139.84,21.00815181]
[1741399254570,0.03,139.87,139.84,21.00815181]
[1741399255368,0.03,139.87,139.85,21.00815181]
[1741399257060,0.03,139.87,139.85,28.15865181]
[1741399257372,0.03,139.87,139.85,21.00815181]
[1741399257684,0.03,139.87,139.84,28.15895181]
[1741399258684,0.03,139.87,139.85,21.00815181]
[1741399258874,0.03,139.87,139.83,21.00815181]
[1741399259658,0.03,139.87,139.82,21.00815181]
[1741399260271,81.3,139.86,139.82,21.00815181]
[1741399260477,81.3,139.86,139.81,21.00815181]
[1741399261385,87.0204,139.85,139.8,21.04115181]
[1741399261967,81.3,139.84,139.8,0.033]
[1741399262370,81.3,139.84,139.8,21.04115181]
[1741399262577,81.3,139.84,139.81,21.00815181]
[1741399263292,81.3,139.84,139.8,7.186]
[1741399263293,82.8229,139.84,139.8,0.033]
[1741399263595,102.30815181,139.83,139.81,0.033]
[1741399263774,81.3,139.82,139.81,0.033]
[1741399264589,21.00815181,139.83,139.81,0.033]
[1741399264810,21.00815181,139.82,139.81,0.033]
[1741399265374,21.00815181,139.82,139.78,0.033]
[1741399265375,20.0271,139.81,139.78,0.033]
[1741399265578,21.00815181,139.79,139.78,0.033]
[1741399265888,5.722,139.81,139.78,0.033]
[1741399266055,21.00815181,139.79,139.78,0.033]
[1741399266259,21.00815181,139.8,139.78,0.033]
[1741399266489,21.00815181,139.79,139.78,0.033]
[1741399266875,21.00815181,139.8,139.78,0.033]
[1741399267283,21.00815181,139.81,139.78,0.033]
[1741399267587,21.00815181,139.8,139.78,0.033]
[1741399268188,21.00815181,139.79,139.78,0.033]
[1741399269202,20.0242,139.83,139.78,0.033]
[1741399269203,21.00815181,139.81,139.78,0.033]
[1741399269798,21.00815181,139.8,139.78,0.033]
[1741399270376,21.00815181,139.79,139.78,0.033]
[1741399271598,26.73095181,139.79,139.78,0.033]
[1741399271778,34.89275181,139.79,139.78,0.033]
[1741399271976,21.00815181,139.74,139.71,0.033]
[1741399272404,21.00815181,139.73,139.71,0.033]
[1741399272587,21.00815181,139.72,139.71,0.033]
[1741399272903,21.00815181,139.73,139.71,0.033]
[1741399273076,82.3,139.73,139.71,0.033]
[1741399277884,82.3,139.72,139.71,0.033]
[1741399279315,82.3,139.72,139.71,21.04115181]
[1741399279866,82.3,139.78,139.71,28.16115181]
[1741399280115,82.3,139.77,139.76,21.00815181]
[1741399280315,82.3,139.81,139.72,36.09045181]
[1741399280491,82.3,139.81,139.78,21.00815181]
[1741399280986,82.3,139.81,139.79,21.00815181]
[1741399282826,82.3,139.81,139.78,7.1539]
[1741399282827,82.3,139.81,139.78,21.00815181]
[1741399283024,88.0221,139.81,139.77,21.00815181]
[1741399283321,88.0221,139.81,139.76,28.12815181]
[1741399283525,88.0221,139.81,139.76,7.12]
[1741399283742,88.0221,139.81,139.76,28.12815181]
[1741399283940,88.0221,139.81,139.76,21.00815181]
[1741399284116,82.3,139.8,139.75,21.00815181]
[1741399284317,82.3,139.79,139.74,21.00815181]
[1741399284739,82.3,139.79,139.75,21.00815181]
[1741399284948,82.3,139.79,139.77,21.00815181]
[1741399285113,82.3,139.79,139.78,21.00815181]
[1741399285308,82.3,139.79,139.76,21.00815181]
[1741399286130,82.3,139.79,139.77,21.00815181]
[1741399286521,82.3,139.79,139.78,21.00815181]
[1741399286725,82.3,139.83,139.78,21.00815181]
[1741399286917,82.3,139.83,139.8,21.00815181]
[1741399287319,82.3,139.83,139.82,21.00815181]
[1741399288037,82.3,139.83,139.82,28.16015181]
[1741399288849,82.3,139.83,139.82,21.00815181]
[1741399289031,82.3,139.83,139.8,21.00815181]
[1741399289232,82.3,139.83,139.79,27.19765181]
[1741399289626,82.3,139.83,139.8,21.00815181]
[1741399289952,82.22842829,139.83,139.8,21.00815181]
[1741399290147,82.22842829,139.82,139.79,21.00815181]
[1741399290334,82.22842829,139.82,139.78,28.12815181]
[1741399290536,82.22842829,139.81,139.77,21.00815181]
[1741399290735,82.22842829,139.81,139.76,21.00815181]
[1741399290943,82.22842829,139.8,139.76,21.00815181]
[1741399291123,82.22842829,139.79,139.75,21.04115181]
[1741399291325,82.22842829,139.78,139.75,21.04115181]
[1741399291549,82.22842829,139.78,139.75,0.033]
[1741399293045,82.22842829,139.78,139.77,21.00815181]
[1741399293749,82.22842829,139.81,139.77,21.00815181]
[1741399293953,82.22842829,139.81,139.78,21.00815181]
[1741399294158,82.22842829,139.81,139.79,21.00815181]
[1741399294340,82.22842829,139.81,139.78,21.00815181]
[1741399295656,82.22842829,139.81,139.77,21.00815181]
[1741399296452,82.22842829,139.8,139.76,21.00815181]
[1741399297360,82.22842829,139.8,139.78,21.00815181]
[1741399297952,82.22842829,139.8,139.77,21.00815181]
[1741399298127,82.22842829,139.8,139.75,21.04115181]
[1741399298324,82.22842829,139.8,139.76,21.00815181]
[1741399298751,82.22842829,139.8,139.77,21.00815181]
[1741399299178,82.22842829,139.8,139.76,21.00815181]
[1741399299373,82.22842829,139.8,139.77,21.00815181]
[1741399300784,82.22842829,139.8,139.77,28.16245181]
[1741399301662,82.22842829,139.8,139.78,21.00815181]
[1741399303485,82.22842829,139.8,139.78,28.16175181]
[1741399305878,82.22842829,139.8,139.79,21.00815181]
[1741399306184,82.22842829,139.86,139.79,42.01630362]
[1741399306385,82.22842829,139.86,139.85,21.00815181]
[1741399306587,82.22842829,139.86,139.79,21.00815181]
[1741399306764,82.22842829,139.86,139.84,21.00815181]
[1741399307372,82.22842829,139.86,139.84,28.15875181]
[1741399307691,0.03,139.87,139.85,21.00815181]
[1741399307892,0.03,139.87,139.86,21.00815181]
[1741399308092,0.0001,139.87,139.86,42.01630362]
[1741399308280,0.0001,139.88,139.86,42.01630362]
[1741399308481,0.0001,139.88,139.87,21.00815181]
[1741399309181,0.03,139.93,139.89,2.0]
[1741399309377,0.03,139.93,139.92,21.00815181]
[1741399311175,0.03,139.93,139.91,21.00815181]
[1741399312284,0.03,139.93,139.9,28.10815181]
[1741399312472,0.03,139.93,139.92,21.00815181]
[1741399313400,0.03,139.93,139.92,33.55580014]
[1741399313800,0.03,139.93,139.92,67.11160028]
[1741399314098,0.03,139.97,139.92,69.81860952]
[1741399314300,0.03,139.97,139.96,33.55580014]
[1741399315584,0.03,139.97,139.96,40.70060014]
[1741399321672,87.94062829,140.05,139.96,40.70060014]
[1741399321878,82.22842829,140.05,140.02,33.55580014]
[1741399322285,82.22842829,140.05,140.03,33.55580014]
[1741399322679,0.03,140.07,140.04,33.55580014]
[1741399322978,0.03,140.07,140.06,33.55580014]
[1741399323790,0.03,140.07,140.06,74.25130028]
[1741399324107,0.03,140.07,140.06,40.69550014]
[1741399324982,0.03,140.07,140.06,33.55580014]
[1741399326607,0.03,140.07,140.02,6.3228]
[1741399326608,0.03,140.07,140.02,13.4228]
[1741399326796,0.03,140.07,140.04,33.55580014]
[1741399326995,0.03,140.07,140.06,33.55580014]
[1741399327192,0.03,140.07,140.02,20.5645]
[1741399327193,0.03,140.07,140.05,33.55580014]
[1741399327506,0.03,140.07,140.04,33.55580014]
[1741399328009,0.03,140.07,140.03,33.55580014]
[1741399328313,33.58580014,140.07,140.01,33.55580014]
[1741399328694,33.58580014,140.07,140.02,33.55580014]
[1741399329615,0.03,140.07,140.02,33.55580014]
[1741399329815,6.4557,140.07,140.02,33.55580014]
[1741399330111,0.03,140.07,140.03,3.55580014]
[1741399330883,0.03,140.07,140.0,47.77860014]
[1741399331211,0.03,140.07,140.04,33.55580014]
[1741399332117,0.03,140.07,140.06,33.55580014]
[1741399333816,0.03,140.07,140.06,67.11160028]
[1741399334019,0.03,140.07,140.06,74.25130028]
[1741399334916,0.03,140.07,140.06,40.69550014]
[1741399335120,2.1168394,140.12,140.06,92.10070028]
[1741399335414,2.1168394,140.12,140.11,33.55580014]
[1741399336095,3.94e-05,140.12,140.11,47.77300014]
[1741399336503,3.94e-05,140.12,140.11,40.63580014]
[1741399336723,3.94e-05,140.12,140.11,47.77300014]
[1741399337122,3.94e-05,140.12,140.11,52.19883659]
[1741399337327,3.94e-05,140.12,140.11,40.63580014]
[1741399338529,3.94e-05,140.12,140.07,33.55580014]
[1741399339312,3.94e-05,140.12,140.1,33.55580014]
[1741399340128,3.94e-05,140.12,140.08,33.55580014]
[1741399340338,3.94e-05,140.12,140.07,33.55580014]
[1741399340539,3.94e-05,140.12,140.08,33.55580014]
[1741399341136,3.94e-05,140.12,140.07,33.55580014]
[1741399341336,3.94e-05,140.12,140.1,33.55580014]
[1741399341639,3.94e-05,140.12,140.07,33.55580014]
[1741399341818,33.55583954,140.12,140.06,40.63580014]
[1741399342217,33.55583954,140.12,140.04,7.1403]
[1741399342443,39.97930014,140.11,140.05,33.55580014]
[1741399342734,6.4235,140.11,140.06,33.55580014]
[1741399343543,39.97930014,140.11,140.05,33.55580014]
[1741399343922,6.4235,140.11,140.06,33.55580014]
[1741399345138,6.4231394,140.12,140.07,33.55580014]
[1741399345325,3.94e-05,140.12,140.07,33.55580014]
[1741399345517,3.94e-05,140.12,140.08,33.55580014]
[1741399345719,3.94e-05,140.12,140.09,33.55580014]
[1741399346436,3.94e-05,140.12,140.1,33.55580014]
[1741399346817,3.94e-05,140.12,140.09,33.55580014]
[1741399347122,3.94e-05,140.12,140.08,40.63580014]
[1741399347318,0.0300394,140.12,140.08,40.63580014]
[1741399350119,0.0300394,140.12,140.08,47.77430014]
[1741399351256,0.0300394,140.12,140.08,40.63580014]
[1741399351759,0.0300394,140.12,140.08,47.77450014]
[1741399352430,81.75846769,140.13,140.08,47.77450014]
[1741399352837,81.75846769,140.12,140.08,40.63580014]
[1741399353055,115.31426783,140.12,140.08,7.08]
[1741399353254,102.692924,140.12,140.08,7.08]
[1741399353564,20.93445631,140.11,140.05,28.10755631]
[1741399353864,109.116424,140.12,140.05,28.10755631]
[1741399354760,88.18196769,140.12,140.06,7.1396]
[1741399355059,20.93445631,140.09,140.05,0.033]
[1741399355428,20.93445631,140.1,140.05,0.033]
[1741399355624,81.75846769,140.11,140.06,20.93445631]
[1741399356353,102.692924,140.11,140.05,28.10755631]
[1741399356547,109.116424,140.11,140.05,28.10755631]
[1741399356838,88.18196769,140.11,140.06,20.93445631]
[1741399357155,81.75846769,140.11,140.06,20.93445631]
[1741399357666,88.18206769,140.11,140.06,20.93445631]
[1741399358439,81.75846769,140.11,140.06,20.93445631]
[1741399358867,81.75846769,140.11,140.06,28.07395631]
[1741399359555,81.75846769,140.11,140.06,28.10695631]
[1741399359963,81.75846769,140.11,140.09,20.93445631]
[1741399360645,81.75846769,140.11,140.06,7.1725]
[1741399360852,81.75846769,140.11,140.06,0.033]
[1741399361169,81.75846769,140.11,140.07,20.93445631]
[1741399361378,81.75846769,140.11,140.08,20.93445631]
[1741399361577,81.75846769,140.11,140.07,20.93445631]
[1741399362068,81.75846769,140.11,140.06,20.96745631]
[1741399362377,81.75846769,140.11,140.07,20.93445631]
[1741399362755,81.75846769,140.11,140.06,20.96745631]
[1741399363080,81.75846769,140.11,140.07,28.07365631]
[1741399367403,81.75846769,140.11,140.08,20.93445631]
[1741399367896,81.75846769,140.11,140.09,7.1382]
[1741399371168,81.75846769,140.11,140.08,7.1386]
[1741399371369,81.75846769,140.11,140.08,7.1716]
[1741399372179,109.116424,140.11,140.08,0.033]
[1741399372988,81.75846769,140.11,140.08,0.033]
[1741399375416,102.692924,140.1,140.08,0.033]
[1741399375787,81.75846769,140.1,140.08,0.033]
[1741399378221,81.75846769,140.1,140.09,20.93445631]
[1741399378621,81.75846769,140.1,140.08,20.96745631]
[1741399380505,81.75846769,140.1,140.09,7.1382]
[1741399380713,81.75846769,140.1,140.08,7.1716]
[1741399383230,81.75846769,140.1,140.09,20.93445631]
[1741399383605,81.75846769,140.1,140.08,7.1716]
[1741399384440,81.75846769,140.1,140.08,28.10605631]
[1741399384605,0.03,140.12,140.09,20.93445631]
[1741399384940,0.03,140.12,140.1,20.93445631]
[1741399386225,0.03,140.12,140.11,7.1372]
[1741399387213,0.03,140.12,140.1,20.93445631]
[1741399387912,0.03,140.12,140.11,20.93445631]
[1741399388501,0.03,140.12,140.1,20.93445631]
[1741399388722,0.03,140.12,140.11,20.93445631]
[1741399389235,0.03,140.12,140.11,35.13165631]
[1741399389606,0.0001,140.12,140.11,35.13165631]
[1741399390732,0.0001,140.13,140.11,35.13165631]
[1741399391034,0.0001,140.13,140.12,20.93445631]
[1741399391406,97.81333765,140.23,140.14,2.0]
[1741399391629,16.05486996,140.23,140.21,20.93445631]
[1741399392620,10.99756722,140.25,140.22,20.93445631]
[1741399394208,6.4167,140.26,140.21,20.93445631]
[1741399394414,27.35115631,140.26,140.19,7.06]
[1741399394637,20.93445631,140.25,140.19,27.99445631]
[1741399395312,20.93445631,140.25,140.19,20.93445631]
[1741399395533,27.35115631,140.26,140.2,20.93445631]
[1741399395746,20.93445631,140.25,140.19,27.99445631]
[1741399396457,20.93445631,140.24,140.18,20.93445631]
[1741399396620,20.93445631,140.23,140.18,7.06]
[1741399396951,20.93445631,140.23,140.18,20.93445631]
[1741399396952,0.03,140.23,140.18,20.93445631]
[1741399397728,27.38245631,140.23,140.17,27.99445631]
[1741399399129,27.38245631,140.23,140.14,14.8516]
[1741399399465,20.93445631,140.21,140.15,27.99445631]
[1741399399746,6.4198,140.19,140.15,7.06]
[1741399400129,27.35395631,140.2,140.15,7.06]
[1741399400333,81.75846769,140.21,140.17,20.93445631]
[1741399400529,81.75846769,140.21,140.18,20.93445631]
[1741399400730,81.75846769,140.21,140.19,20.93445631]
[1741399400944,27.38275631,140.23,140.18,20.93445631]
[1741399401137,27.38275631,140.23,140.17,20.93445631]
[1741399401752,27.38275631,140.23,140.15,7.06]
[1741399401753,27.35335631,140.21,140.15,27.99445631]
[1741399401936,27.35335631,140.21,140.15,7.06]
[1741399402252,27.35335631,140.21,140.15,27.99445631]
[1741399402545,109.111524,140.22,140.16,20.93445631]
[1741399402953,109.111524,140.22,140.15,7.06]
[1741399403137,109.111524,140.22,140.16,20.93445631]
[1741399404451,81.75846769,140.22,140.17,20.93445631]
[1741399404655,81.75846769,140.22,140.18,20.93445631]
[1741399405570,81.75846769,140.22,140.19,20.93445631]
[1741399406155,81.75846769,140.22,140.2,20.93445631]
[1741399406338,81.75846769,140.22,140.19,28.06715631]
[1741399406737,81.75846769,140.22,140.2,20.93445631]
[1741399407061,81.75846769,140.22,140.18,20.93445631]
[1741399407262,81.75846769,140.22,140.17,7.1341]
[1741399407263,81.75846769,140.22,140.17,20.93445631]
[1741399407466,81.75846769,140.22,140.19,20.93445631]
[1741399407667,81.75846769,140.22,140.2,20.93445631]
[1741399407835,81.75846769,140.22,140.19,20.93445631]
[1741399408543,0.03,140.23,140.2,7.1326]
[1741399408951,0.03,140.23,140.18,7.06]
[1741399409157,0.03,140.23,140.18,27.99445631]
[1741399409362,20.96445631,140.23,140.18,7.06]
[1741399409665,20.96445631,140.23,140.13,0.033]
[1741399409666,20.93445631,140.19,140.13,0.033]
[1741399410347,20.93445631,140.19,140.13,20.96745631]
[1741399410545,8.1126,140.2,140.15,20.93445631]
[1741399410728,1.5545,140.2,140.16,20.93445631]
[1741399410934,1.5545,140.2,140.15,20.93445631]
[1741399411657,28.90845631,140.2,140.13,14.2291]
[1741399411853,20.93445631,140.19,140.13,14.2291]
[1741399412279,20.93445631,140.19,140.13,7.093]
[1741399412461,20.93445631,140.18,140.13,7.093]
[1741399412645,27.35505631,140.18,140.13,0.033]
[1741399412845,20.93445631,140.18,140.13,0.033]
[1741399413141,22.48895631,140.2,140.13,28.10365631]
[1741399413339,28.90845631,140.2,140.14,20.93445631]
[1741399413577,20.93445631,140.19,140.13,28.10365631]
[1741399413959,1.5545,140.2,140.14,20.93445631]
[1741399414256,1.5545,140.2,140.16,20.93445631]
[1741399414473,6.5881,140.23,140.18,20.93445631]
[1741399415084,6.5881,140.23,140.17,20.93445631]
[1741399415085,27.52255631,140.23,140.17,20.93445631]
[1741399415262,33.94065631,140.23,140.17,20.93445631]
[1741399415470,6.5881,140.23,140.18,20.93445631]
[1741399416883,6.5881,140.23,140.19,7.1331]
[1741399418178,6.5881,140.23,140.16,7.1347]
[1741399418350,6.5881,140.23,140.17,20.93445631]
[1741399418848,33.94065631,140.23,140.17,20.93445631]
[1741399419750,33.94065631,140.23,140.16,28.06915631]
[1741399419956,27.35305631,140.22,140.16,28.06915631]
[1741399420651,27.35305631,140.22,140.16,20.93445631]
[1741399420868,20.93445631,140.21,140.15,28.06925631]
[1741399421069,20.93445631,140.2,140.14,27.99445631]
[1741399421378,20.93445631,140.21,140.14,35.13005631]
[1741399421781,20.93445631,140.21,140.15,20.93445631]
[1741399421985,27.35365631,140.21,140.15,28.06945631]
[1741399422454,20.93445631,140.19,140.13,28.10345631]
[1741399423180,1.6015,140.18,140.13,0.033]
[1741399423572,1.6015,140.18,140.13,28.10345631]
[1741399424370,1.6015,140.18,140.14,20.93445631]
[1741399426080,20.93445631,140.17,140.13,0.033]
[1741399426267,20.93445631,140.16,140.13,0.033]
[1741399428705,27.35605631,140.16,140.13,0.033]
[1741399429594,20.93445631,140.15,140.13,0.033]
[1741399429795,102.692924,140.14,140.13,0.033]
[1741399430700,109.115024,140.14,140.13,0.033]
[1741399432085,102.692924,140.14,140.13,0.033]
[1741399432290,81.75846769,140.14,140.13,0.033]
[1741399435388,22.53595631,140.18,140.13,0.033]
[1741399435693,1.6015,140.18,140.13,20.96745631]
[1741399436302,1.6015,140.18,140.14,20.93445631]
[1741399436514,1.6015,140.18,140.15,7.1352]
[1741399437305,81.78846769,140.2,140.15,7.1352]
[1741399437510,81.78846769,140.2,140.16,20.93445631]
[1741399437814,0.03,140.2,140.17,20.93445631]
[1741399438500,20.96445631,140.2,140.15,7.06]
[1741399439180,0.03,140.2,140.15,35.12955631]
[1741399439582,0.03,140.2,140.16,20.93445631]
[1741399439985,0.03,140.2,140.17,20.93445631]
[1741399440617,0.03,140.2,140.16,7.1345]
[1741399440822,0.03,140.2,140.15,35.12945631]
[1741399441113,20.96445631,140.2,140.15,14.195]
[1741399441275,20.93445631,140.19,140.15,7.06]
[1741399442625,20.93445631,140.18,140.13,0.033]
[1741399442786,20.93445631,140.17,140.13,0.033]
[1741399443187,81.75846769,140.18,140.13,0.033]
[1741399443528,20.93445631,140.14,140.13,0.033]
[1741399448426,81.75846769,140.15,140.13,0.033]
[1741399448627,102.692924,140.15,140.13,0.033]
[1741399448809,81.75846769,140.15,140.13,0.033]
[1741399449621,81.78846769,140.19,140.14,20.93445631]
[1741399450138,81.78846769,140.19,140.15,20.93445631]
[1741399450306,81.78846769,140.19,140.14,7.1357]
[1741399450307,20.93445631,140.18,140.14,7.1357]
[1741399450629,20.93445631,140.17,140.13,7.169]
[1741399450936,20.93445631,140.17,140.13,0.033]
[1741399451114,20.93445631,140.17,140.13,7.1691]
[1741399451445,20.93445631,140.18,140.13,7.1691]
[1741399451954,81.78846769,140.19,140.14,20.93445631]
[1741399452248,81.78846769,140.19,140.14,28.06985631]
[1741399452451,20.93445631,140.18,140.13,0.033]
[1741399452664,20.93445631,140.18,140.13,7.169]
[1741399453851,102.722924,140.19,140.13,28.10345631]
[1741399454047,109.142924,140.19,140.13,28.10345631]
[1741399455038,102.722924,140.19,140.13,28.10345631]
[1741399455548,102.722924,140.19,140.14,20.93445631]
[1741399455549,81.78846769,140.19,140.14,20.93445631]
[1741399456051,102.722924,140.19,140.13,28.10345631]
[1741399456848,81.78846769,140.19,140.14,20.93445631]
[1741399457152,102.722924,140.19,140.15,7.1352]
[1741399457356,81.78846769,140.19,140.15,7.1352]
[1741399459257,102.722924,140.19,140.13,20.96745631]
[1741399460763,102.722924,140.19,140.14,7.1357]
[1741399461056,81.78846769,140.19,140.14,7.1357]
[1741399461962,81.78846769,140.19,140.14,20.93445631]
[1741399462367,102.722924,140.19,140.13,20.96745631]
[1741399463648,109.142924,140.19,140.14,7.1357]
[1741399463972,102.722924,140.19,140.14,7.1357]
[1741399465280,95.17179124,140.19,140.13,13.41632355]
[1741399467375,81.78846769,140.19,140.14,7.1357]
[1741399467580,95.17179124,140.19,140.14,7.1357]
[1741399468581,81.78846769,140.19,140.14,7.1357]
[1741399469782,81.78846769,140.19,140.13,0.033]
[1741399469783,13.38332355,140.18,140.13,0.033]
[1741399471580,95.17179124,140.19,140.13,20.55252355]
[1741399472878,101.59169124,140.19,140.13,20.55252355]
[1741399473681,95.17179124,140.19,140.13,20.55252355]
[1741399473890,81.78846769,140.19,140.14,13.38332355]
[1741399474250,81.78846769,140.19,140.13,26.69332355]
[1741399474481,88.20836769,140.19,140.13,26.69332355]
[1741399475078,101.59169124,140.19,140.13,26.69332355]
[1741399475463,81.78846769,140.19,140.13,26.69332355]
[1741399476964,101.59169124,140.19,140.13,7.1692]
[1741399477584,101.59169124,140.19,140.13,0.033]
[1741399478156,13.38332355,140.17,140.13,0.033]
[1741399479388,13.38332355,140.18,140.13,0.033]
[1741399479563,88.20836769,140.19,140.13,0.033]
[1741399479759,101.59169124,140.19,140.13,7.1692]
[1741399480187,88.20836769,140.19,140.13,20.55252355]
[1741399480384,0.03,140.18,140.13,20.55252355]
[1741399481752,0.03,140.18,140.17,13.38332355]
[1741399483273,0.03,140.18,140.17,20.51742355]
[1741399483667,0.03,140.19,140.17,20.51742355]
[1741399483863,0.03,140.19,140.18,13.38332355]
[1741399485483,0.03,140.19,140.18,20.51692355]
[1741399489678,0.03,140.19,140.18,7.1336]
[1741399489897,0.03,140.19,140.17,13.38332355]
[1741399490106,0.03,140.19,140.16,13.38332355]
[1741399490413,14.96882355,140.17,140.13,0.033]
[1741399490573,13.38332355,140.15,140.13,0.033]
[1741399490773,95.14179124,140.16,140.13,0.033]
[1741399492220,13.38332355,140.15,140.13,0.033]
[1741399492506,95.14179124,140.14,140.13,0.033]
[1741399492686,13.38332355,140.14,140.13,0.033]
[1741399493085,13.38332355,140.15,140.13,0.033]
[1741399493299,20.92398508,140.15,140.13,0.033]
[1741399494087,27.20898508,140.16,140.13,0.033]
[1741399494291,22.50948508,140.17,140.13,0.033]
[1741399494498,20.92398508,140.14,140.13,0.033]
[1741399495991,20.92398508,140.16,140.13,0.033]
[1741399496305,20.92398508,140.15,140.13,0.033]
[1741399496877,20.92398508,140.16,140.13,0.033]
[1741399497277,22.50948508,140.17,140.13,0.033]
[1741399498397,82.3,140.16,140.13,0.033]
[1741399498715,82.3,140.16,140.13,20.95698508]
[1741399498878,82.3,140.16,140.14,20.92398508]
[1741399499982,82.3,140.16,140.15,20.92398508]
[1741399500203,82.3,140.16,140.15,28.05918508]
[1741399501513,82.3,140.16,140.15,7.1352]
[1741399501824,82.3,140.16,140.15,28.05918508]
[1741399503719,0.03,140.19,140.15,35.13218508]
[1741399503918,0.03,140.19,140.18,20.92398508]
[1741399504109,0.03,140.19,140.17,20.92398508]
[1741399505015,0.03,140.19,140.16,20.92398508]
[1741399505189,0.03,140.19,140.17,20.92398508]
[1741399506219,0.03,140.19,140.15,22.2047]
[1741399506519,0.03,140.19,140.16,20.92398508]
[1741399508198,0.03,140.19,140.15,14.2082]
[1741399508704,0.03,140.19,140.16,20.92398508]
[1741399509318,0.03,140.19,140.17,20.92398508]
[1741399510605,0.03,140.19,140.17,7.1339]
[1741399511328,0.03,140.19,140.16,28.05848508]
[1741399511531,0.03,140.19,140.16,20.92398508]
[1741399512045,0.03,140.19,140.16,28.05858508]
[1741399512838,0.03,140.19,140.15,27.99698508]
[1741399513440,0.03,140.19,140.15,0.033]
[1741399513743,82.33,140.19,140.15,0.033]
[1741399513923,20.92398508,140.18,140.15,0.033]
[1741399514116,82.33,140.19,140.15,0.033]
[1741399514341,20.92398508,140.18,140.15,0.033]
[1741399514527,20.92398508,140.16,140.15,0.033]
[1741399516237,27.34518508,140.16,140.15,0.033]
[1741399517523,34.36518508,140.16,140.15,0.033]
[1741399518048,1.5586,140.15,140.13,0.033]
[1741399518251,48.05657016,140.14,140.08,0.033]
[1741399518451,20.92398508,140.09,140.08,0.033]
[1741399519252,27.34838508,140.09,140.08,0.033]
[1741399519949,20.92398508,140.09,140.08,0.033]
[1741399520132,20.92398508,140.1,140.08,0.033]
[1741399520856,20.92398508,140.13,140.08,0.033]
[1741399521147,20.92398508,140.11,140.08,0.033]
[1741399521520,8.5786,140.15,140.08,20.95698508]
[1741399521832,22.48258508,140.15,140.09,20.92398508]
[1741399523451,22.48258508,140.15,140.1,7.1377]
[1741399525445,20.92398508,140.14,140.1,7.1377]
[1741399525648,1.5586,140.15,140.09,7.1382]
[1741399525836,22.48258508,140.15,140.09,45.90778508]
[1741399526036,13.4699,140.19,140.09,45.90778508]
[1741399526037,82.3,140.17,140.13,20.92398508]
[1741399526246,82.3,140.17,140.14,20.92398508]